fUSD/lending_fUSD_20250513
["ID","MTS","AMOUNT","RATE_DAILY","PERIOD"]
[360977712,1747177845091,-490.13,0.00010961,2]
[360977713,1747177845100,-2946.22,0.00010961,2]
[360977714,1747177845110,-400.0,0.00010961,2]
[360977715,1747177845119,-400.0,0.00010961,2]
[360977716,1747177845129,-400.0,0.00010961,2]
[360977717,1747177845138,-400.0,0.00010961,2]
[360977718,1747177845147,-400.0,0.00010961,2]
[360977719,1747177845157,-616.39,0.00010961,2]
[360977720,1747177845166,-13023.39,0.00010961,2]
[360977721,1747177845176,-400.0,0.00010961,2]
[360977722,1747177845185,-400.0,0.00010961,2]
[360977723,1747177845197,-400.0,0.00010961,2]
[360977724,1747177845206,-6247.21,0.00010961,2]
[360977725,1747177845215,-5735.96,0.00010961,2]
[360977726,1747177845225,-400.0,0.00010961,2]
[360977727,1747177845234,-789.66,0.00010961,2]
[360977728,1747177845243,-450.46,0.00010961,2]
[360977729,1747177845254,-7795.98,0.00010961,2]
[360977730,1747177845263,-400.0,0.00010961,2]
[360977731,1747177845272,-400.0,0.00010961,2]
[360977732,1747177845282,-441.33,0.00010961,2]
[360977733,1747177845291,-480.76,0.00010961,2]
[360977734,1747177845301,-2443.32,0.00010961,2]
[360977735,1747177845311,-2038.41,0.00010961,2]
[360977736,1747177845320,-442.05,0.00010961,2]
[360977737,1747177845330,-526.51,0.00010961,2]
[360977738,1747177845339,-400.0,0.00010961,2]
[360977739,1747177845349,-400.0,0.00010961,2]
[360977740,1747177845358,-350.56797425,0.00010962,2]
[360977741,1747177845368,-400.0,0.00010962,2]
[360977742,1747177845377,-443.20526365,0.00010962,2]
[360977743,1747177845386,-400.0,0.00010962,2]
[360977744,1747177845395,-950.9,0.00010962,2]
[360977745,1747177845405,-400.0,0.00010962,2]
[360977746,1747177845415,-901.55,0.00010962,2]
[360977747,1747177845424,-400.0,0.00010962,2]
[360977748,1747177845435,-400.0,0.00010962,2]
[360977749,1747177845446,-400.0,0.00010962,2]
[360977750,1747177845455,-400.0,0.00010962,2]
[360977751,1747177845464,-400.0,0.00010962,2]
[360977752,1747177845473,-400.0,0.00010962,2]
[360977753,1747177845482,-400.0,0.00010962,2]
[360977754,1747177845491,-400.0,0.00010962,2]
[360977755,1747177845501,-400.0,0.00010962,2]
[360977756,1747177845510,-949.51,0.00010962,2]
[360977757,1747177845520,-400.0,0.00010962,2]
[360977758,1747177845529,-480.48,0.00010962,2]
[360977759,1747177845538,-657.84,0.00010962,2]
[360977760,1747177845547,-400.0,0.00010962,2]
[360977761,1747177845557,-400.0,0.00010962,2]
[360977762,1747177845566,-400.0,0.00010962,2]
[360977763,1747177845575,-400.0,0.00010962,2]
[360977764,1747177845584,-400.0,0.00010962,2]
[360977765,1747177845594,-400.0,0.00010962,2]
[360977766,1747177845602,-400.0,0.00010962,2]
[360977767,1747177845612,-439.71,0.00010962,2]
[360977768,1747177845621,-400.0,0.00010962,2]
[360977769,1747177845630,-1547.55,0.00010962,2]
[360977770,1747177845639,-400.0,0.00010962,2]
[360977771,1747177845648,-400.0,0.00010962,2]
[360977772,1747177845658,-400.0,0.00010962,2]
[360977773,1747177845667,-989.02,0.00010962,2]
[360977774,1747177845676,-400.0,0.00010962,2]
[360977775,1747177845685,-400.0,0.00010962,2]
[360977776,1747177845696,-937.89,0.00010962,2]
[360977777,1747177845705,-400.0,0.00010962,2]
[360977778,1747177845714,-400.0,0.00010962,2]
[360977779,1747177845723,-762.12,0.00010962,2]
[360977780,1747177845733,-400.0,0.00010962,2]
[360977781,1747177845742,-400.0,0.00010962,2]
[360977782,1747177845751,-400.0,0.00010962,2]
[360977783,1747177845760,-994.89,0.00010962,2]
[360977784,1747177845769,-400.0,0.00010962,2]
[360977785,1747177845779,-642.04,0.00010962,2]
[360977786,1747177845792,-422.63769423,0.00010962,2]
[360977787,1747177845801,-846.27,0.00010962,2]
[360977788,1747177845810,-957.17,0.00010962,2]
[360977789,1747177845819,-400.0,0.00010962,2]
[360977790,1747177845830,-400.0,0.00010962,2]
[360977791,1747177845839,-1214.65,0.00010962,2]
[360977792,1747177845848,-400.0,0.00010962,2]
[360977793,1747177845857,-400.0,0.00010962,2]
[360977794,1747177845868,-539.51764996,0.00010962,2]
[360977795,1747177845878,-400.0,0.00010962,2]
[360977796,1747177845888,-400.0,0.00010962,2]
[360977797,1747177845897,-400.0,0.00010962,2]
[360977798,1747177845906,-612.6,0.00010962,2]
[360977799,1747177845917,-400.0,0.00010962,2]
[360977800,1747177845926,-511.98,0.00010962,2]
[360977801,1747177845937,-400.0,0.00010962,2]
[360977802,1747177845948,-400.0,0.00010962,2]
[360977803,1747177845958,-342.37866541,0.00010962,2]
[360977804,1747177845967,-400.0,0.00010962,2]
[360977805,1747177845976,-400.0,0.00010962,2]
[360977806,1747177845986,-400.0,0.00010962,2]
[360977807,1747177845996,-400.0,0.00010962,2]
[360977808,1747177846006,-590.71,0.00010962,2]
[360977809,1747177846015,-400.0,0.00010962,2]
[360977810,1747177846024,-400.0,0.00010962,2]
[360977811,1747177846033,-400.0,0.00010962,2]
[360977812,1747177846043,-400.0,0.00010962,2]
[360977813,1747177846052,-174.987149,0.00010963,2]
[360977814,1747177846062,-500.0,0.00010973,2]
[360977815,1747177846071,-500.0,0.00010973,2]
[360977816,1747177846081,-426.13040596,0.00010973,2]
[360977817,1747177846090,-500.0,0.00010973,2]
[360977818,1747177846099,-500.0,0.00010973,2]
[360977819,1747177846109,-165.04582177,0.00010973,2]
[360977820,1747177846118,-616.71146284,0.00010973,2]
[360977821,1747177846127,-501.61190774,0.00010973,2]
[360977822,1747177846138,-500.0,0.00010973,2]
[360977823,1747177846147,-268.95154683,0.00010973,2]
[360977824,1747177846157,-500.0,0.00010973,2]
[360977825,1747177846166,-1459.501,0.00010973,2]
[360977826,1747177846177,-298.26089446,0.00010977,2]
[360977827,1747177846186,-356.47698813,0.00010999,2]
[360977828,1747177846197,-300.0,0.00010999,2]
[360977830,1747177846206,-300.0,0.00010999,2]
[360977832,1747177846216,-300.0,0.00010999,2]
[360977834,1747177846225,-505.0,0.00011,2]
[360977836,1747177846234,-2974474.58396236,0.00011,2]
[360977838,1747177846244,-258699.0925928,0.00011,2]
[360977840,1747177846255,-150.0,0.00011,2]
[360977842,1747177846264,-569.92788206,0.00011,2]
[360977844,1747177846274,-1000.0,0.00011,2]
[360977846,1747177846283,-1000.0,0.00011,2]
[360977848,1747177846292,-1000.0,0.00011,2]
[360977850,1747177846301,-1000.0,0.00011,2]
[360977852,1747177846311,-1000.0,0.00011,2]
[360977854,1747177846320,-1000.0,0.00011,2]
[360977856,1747177846329,-784.16391806,0.00011,2]
[360977858,1747177846340,-4038.91161959,0.00011,2]
[360977860,1747177846351,-308.77634312,0.00011,2]
[360977862,1747177846360,-200.0,0.00011,2]
[360977864,1747177846371,-3057.727607,0.00011052,2]
[360977866,1747177846381,-5692.389789,0.0001106,2]
[360977868,1747177846390,-130459.9806666,0.00011067,2]
[360977870,1747177846399,-7967.4293124,0.00011067,2]
[360977872,1747177846408,-151.0,0.00011067,2]
[360977874,1747177846418,-151.0,0.00011067,2]
[360977876,1747177846428,-151.0,0.00011067,2]
[360977877,1747177846437,-151.0,0.00011067,2]
[360977878,1747177846447,-151.0,0.00011067,2]
[360977879,1747177846457,-151.0,0.00011067,2]
[360977880,1747177846466,-151.0,0.00011067,2]
[360977881,1747177846475,-151.0,0.00011067,2]
[360977882,1747177846484,-151.0,0.00011067,2]
[360977883,1747177846493,-151.0,0.00011067,2]
[360977884,1747177846502,-151.0,0.00011067,2]
[360977885,1747177846511,-151.0,0.00011067,2]
[360977886,1747177846520,-151.0,0.00011067,2]
[360977887,1747177846529,-151.0,0.00011067,2]
[360977888,1747177846539,-7996.1578763,0.00011075,2]
[360977889,1747177846547,-10559.40177988,0.00011099,2]
[360977890,1747177846557,-10559.40177985,0.00011099,2]
[360977891,1747177846567,-10559.40177985,0.00011099,2]
[360977892,1747177846576,-10559.40177985,0.00011099,2]
[360977893,1747177846585,-70373.65774539,0.00011099,2]
[360977894,1747177846594,-70373.65774533,0.00011099,2]
[360977895,1747177846603,-151.0,0.00011099,2]
[360977896,1747177846612,-70373.65774533,0.00011104,2]
[360977897,1747177846622,-200.0,0.0001111,2]
[360977898,1747177846631,-403.11,0.00011136,2]
[360977899,1747177846641,-10559.40177985,0.00011141,2]
[360977900,1747177846650,-164.85,0.00011186,2]
[360977901,1747177846658,-10559.40177985,0.00011212,2]
[360977902,1747177846668,-200.0,0.00011221,2]
[360977903,1747177846678,-180.149056,0.00011225,2]
[360977904,1747177846687,-151.0,0.00011225,2]
[360977905,1747177846697,-151.0,0.00011225,2]
[360977906,1747177846707,-151.0,0.00011225,2]
[360977907,1747177846716,-151.0,0.00011225,2]
[360977908,1747177846727,-162.412825,0.00011225,2]
[360977909,1747177846745,-257.239576,0.00011225,2]
[360977910,1747177846756,-152.363441,0.00011225,2]
[360977912,1747177846767,-152.363441,0.00011225,2]
[360977914,1747177846777,-151.0,0.00011225,2]
[360977916,1747177846792,-151.0,0.00011225,2]
[360977918,1747177846802,-151.0,0.00011225,2]
[360977920,1747177846812,-151.0,0.00011225,2]
[360977922,1747177846823,-151.0,0.00011225,2]
[360977924,1747177846832,-151.0,0.00011225,2]
[360977926,1747177846843,-368.273227,0.00011225,2]
[360977928,1747177846852,-368.273227,0.00011225,2]
[360977930,1747177846863,-218.993486,0.00011225,2]
[360977931,1747177846873,-151.0,0.00011225,2]
[360977933,1747177846883,-151.0,0.00011225,2]
[360977935,1747177846892,-151.0,0.00011225,2]
[360977937,1747177846902,-151.0,0.00011225,2]
[360977939,1747177846912,-151.0,0.00011225,2]
[360977941,1747177846921,-151.0,0.00011225,2]
[360977943,1747177846931,-70373.65774533,0.00011225,2]
[360977945,1747177846941,-151.0,0.00011226,2]
[360977947,1747177846954,-197.31827,0.00011226,2]
[360977949,1747177846964,-197.31827,0.00011226,2]
[360977951,1747177846974,-151.0,0.00011226,2]
[360977953,1747177846984,-151.0,0.00011226,2]
[360977955,1747177846994,-151.0,0.00011226,2]
[360977957,1747177847004,-400.0,0.00011232,2]
[360977959,1747177847014,-4000.0,0.00011233,2]
[360977961,1747177847024,-467.58,0.00011233,2]
[360977963,1747177847033,-400.0,0.00011233,2]
[360977966,1747177847043,-995.4,0.00011233,2]
[360977969,1747177847053,-400.0,0.00011233,2]
[360977971,1747177847063,-400.0,0.00011233,2]
[360977973,1747177847073,-491.73,0.00011233,2]
[360977975,1747177847083,-400.0,0.00011233,2]
[360977977,1747177847093,-434.14,0.00011233,2]
[360977979,1747177847103,-930.61,0.00011233,2]
[360977981,1747177847113,-400.0,0.00011233,2]
[360977983,1747177847122,-400.0,0.00011233,2]
[360977984,1747177847132,-400.0,0.00011233,2]
[360977986,1747177847142,-400.0,0.00011233,2]
[360977988,1747177847152,-3818.76,0.00011233,2]
[360977990,1747177847161,-450.52,0.00011233,2]
[360977992,1747177847171,-400.0,0.00011233,2]
[360977994,1747177847182,-400.0,0.00011233,2]
[360977996,1747177847194,-1598.020913,0.00011233,2]
[360977998,1747177847204,-1579.56,0.00011233,2]
[360978000,1747177847215,-151.0,0.00011233,2]
[360978002,1747177847225,-552.8,0.00011233,2]
[360978004,1747177847235,-824.98,0.00011233,2]
[360978006,1747177847245,-151.0,0.00011233,2]
[360978008,1747177847255,-304.984101,0.00011233,2]
[360978010,1747177847266,-151.0,0.00011233,2]
[360978012,1747177847276,-400.0,0.00011233,2]
[360978014,1747177847286,-151.0,0.00011233,2]
[360978016,1747177847296,-400.0,0.00011233,2]
[360978018,1747177847306,-151.0,0.00011233,2]
[360978020,1747177847316,-1359.58,0.00011233,2]
[360978022,1747177847326,-400.0,0.00011234,2]
[360978024,1747177847336,-300.0,0.00011234,2]
[360978026,1747177847346,-400.0,0.00011234,2]
[360978028,1747177847356,-400.0,0.00011234,2]
[360978029,1747177847367,-623.55,0.00011234,2]
[360978031,1747177847376,-400.0,0.00011234,2]
[360978033,1747177847386,-400.0,0.00011234,2]
[360978035,1747177847396,-400.0,0.00011234,2]
[360978037,1747177847406,-400.0,0.00011234,2]
[360978039,1747177847416,-400.0,0.00011234,2]
[360978041,1747177847425,-422.96,0.00011234,2]
[360978043,1747177847435,-571.48,0.00011234,2]
[360978045,1747177847445,-400.0,0.00011234,2]
[360978047,1747177847454,-400.0,0.00011234,2]
[360978049,1747177847464,-694.94,0.00011234,2]
[360978051,1747177847473,-400.0,0.00011234,2]
[360978052,1747177847483,-400.0,0.00011234,2]
[360978054,1747177847493,-400.0,0.00011234,2]
[360978056,1747177847502,-400.0,0.00011234,2]
[360978058,1747177847512,-400.0,0.00011234,2]
[360978060,1747177847521,-419.06,0.00011234,2]
[360978062,1747177847531,-1033.31,0.00011234,2]
[360978064,1747177847540,-400.0,0.00011234,2]
[360978066,1747177847550,-590.33,0.00011234,2]
[360978086,1747177847754,-400.0,0.00011234,2]
[360978088,1747177847764,-400.0,0.00011234,2]
[360978090,1747177847773,-484.3,0.00011234,2]
[360978092,1747177847785,-400.0,0.00011234,2]
[360978094,1747177847796,-400.0,0.00011234,2]
[360978096,1747177847806,-687.53,0.00011234,2]
[360978098,1747177847815,-400.0,0.00011234,2]
[360978100,1747177847824,-400.0,0.00011234,2]
[360978102,1747177847835,-523.17,0.00011234,2]
[360978104,1747177847844,-400.0,0.00011234,2]
[360978106,1747177847855,-497.9,0.00011234,2]
[360978108,1747177847864,-430.27,0.00011234,2]
[360978109,1747177847874,-967.7,0.00011234,2]
[360978111,1747177847883,-400.0,0.00011234,2]
[360978113,1747177847892,-400.0,0.00011234,2]
[360978115,1747177847902,-529.91,0.00011234,2]
[360978117,1747177847911,-400.0,0.00011234,2]
[360978119,1747177847921,-430.95,0.00011234,2]
[360978121,1747177847930,-400.0,0.00011234,2]
[360978123,1747177847939,-634.66,0.00011234,2]
[360978125,1747177847950,-400.0,0.00011234,2]
[360978127,1747177847959,-864.63,0.00011234,2]
[360978129,1747177847968,-893.21,0.00011234,2]
[360978131,1747177847978,-927.11,0.00011234,2]
[360978133,1747177847987,-400.0,0.00011234,2]
[360978134,1747177847996,-400.0,0.00011234,2]
[360978136,1747177848005,-400.0,0.00011234,2]
[360978138,1747177848015,-400.0,0.00011234,2]
[360978140,1747177848024,-539.37,0.00011234,2]
[360978142,1747177848033,-1298.11,0.00011234,2]
[360978144,1747177848043,-400.0,0.00011234,2]
[360978146,1747177848052,-1195.88,0.00011234,2]
[360978148,1747177848061,-400.0,0.00011234,2]
[360978150,1747177848071,-400.0,0.00011234,2]
[360978152,1747177848080,-400.0,0.00011234,2]
[360978154,1747177848091,-995.3,0.00011234,2]
[360978156,1747177848100,-400.0,0.00011234,2]
[360978157,1747177848109,-413.32,0.00011234,2]
[360978159,1747177848119,-661.02,0.00011234,2]
[360978161,1747177848130,-400.0,0.00011234,2]
[360978163,1747177848139,-400.0,0.00011234,2]
[360978165,1747177848148,-525.9,0.00011234,2]
[360978167,1747177848157,-400.0,0.00011234,2]
[360978169,1747177848167,-435.24,0.00011234,2]
[360978171,1747177848176,-400.0,0.00011234,2]
[360978173,1747177848185,-411.49,0.00011234,2]
[360978174,1747177848197,-795.18,0.00011234,2]
[360978176,1747177848206,-1532.21,0.00011234,2]
[360978178,1747177848215,-938.35,0.00011234,2]
[360978180,1747177848225,-400.0,0.00011234,2]
[360978182,1747177848235,-400.0,0.00011234,2]
[360978184,1747177848245,-151.0,0.00011234,2]
[360978185,1747177848254,-151.0,0.00011234,2]
[360978186,1747177848263,-782.01,0.00011234,2]
[360978187,1747177848273,-151.0,0.00011234,2]
[360978188,1747177848283,-400.0,0.00011234,2]
[360978189,1747177848293,-660.81,0.00011234,2]
[360978190,1747177848305,-1153.21,0.00011234,2]
[360978191,1747177848315,-162.190272,0.00011234,2]
[360978192,1747177848325,-400.0,0.00011234,2]
[360978193,1747177848334,-400.0,0.00011234,2]
[360978194,1747177848344,-1640.97,0.00011234,2]
[360978195,1747177848354,-400.0,0.00011234,2]
[360978196,1747177848363,-424.1,0.00011234,2]
[360978197,1747177848373,-400.0,0.00011234,2]
[360978198,1747177848383,-151.0,0.00011234,2]
[360978199,1747177848394,-212.087228,0.00011234,2]
[360978200,1747177848404,-400.0,0.00011234,2]
[360978201,1747177848413,-212.087228,0.00011234,2]
[360978202,1747177848423,-1737.68,0.00011234,2]
[360978203,1747177848433,-206.217485,0.00011234,2]
[360978204,1747177848443,-348.689341,0.00011234,2]
[360978205,1747177848453,-451.76,0.00011234,2]
[360978206,1747177848463,-701.04,0.00011234,2]
[360978207,1747177848472,-152.904492,0.00011234,2]
[360978208,1747177848482,-348.689341,0.00011234,2]
[360978209,1747177848491,-295.47500337,0.00011234,2]
[360978210,1747177848500,-152.904492,0.00011234,2]
[360978211,1747177848510,-1236.4,0.00011234,2]
[360978213,1747177848519,-624.97,0.00011234,2]
[360978215,1747177848529,-599.04,0.00011234,2]
[360978216,1747177848539,-151.0,0.00011234,2]
[360978218,1747177848548,-1090.86,0.00011234,2]
[360978220,1747177848557,-372.683801,0.00011234,2]
[360978222,1747177848567,-400.0,0.00011234,2]
[360978224,1747177848576,-400.0,0.00011234,2]
[360978226,1747177848585,-372.683801,0.00011234,2]
[360978228,1747177848594,-505.59,0.00011234,2]
[360978230,1747177848604,-559.95,0.00011234,2]
[360978232,1747177848614,-1384.79,0.00011234,2]
[360978234,1747177848623,-400.0,0.00011234,2]
[360978236,1747177848633,-400.0,0.00011234,2]
[360978238,1747177848642,-400.0,0.00011234,2]
[360978240,1747177848652,-400.0,0.00011234,2]
[360978242,1747177848661,-1039.32,0.00011234,2]
[360978244,1747177848670,-1141.13,0.00011234,2]
[360978246,1747177848680,-400.0,0.00011234,2]
[360978248,1747177848689,-548.5,0.00011234,2]
[360978250,1747177848701,-1107.61,0.00011234,2]
[360978252,1747177848711,-400.0,0.00011234,2]
[360978254,1747177848720,-897.78,0.00011234,2]
[360978255,1747177848729,-400.0,0.00011234,2]
[360978257,1747177848739,-400.0,0.00011234,2]
[360978259,1747177848748,-400.0,0.00011234,2]
[360978261,1747177848757,-485.6,0.00011234,2]
[360978263,1747177848766,-400.0,0.00011234,2]
[360978265,1747177848776,-703.58,0.00011234,2]
[360978267,1747177848789,-513.12,0.00011234,2]
[360978269,1747177848798,-400.0,0.00011234,2]
[360978271,1747177848808,-400.0,0.00011234,2]
[360978273,1747177848817,-400.0,0.00011234,2]
[360978275,1747177848827,-400.0,0.00011234,2]
[360978277,1747177848836,-1427.76,0.00011234,2]
[360978279,1747177848846,-400.0,0.00011234,2]
[360978281,1747177848855,-400.0,0.00011234,2]
[360978283,1747177848866,-400.0,0.00011234,2]
[360978285,1747177848877,-1109.2,0.00011234,2]
[360978287,1747177848886,-400.0,0.00011234,2]
[360978289,1747177848895,-598.93,0.00011234,2]
[360978291,1747177848905,-373.28817701,0.00011234,2]
[360978293,1747177848914,-400.0,0.00011234,2]
[360978295,1747177848923,-1017.59,0.00011234,2]
[360978297,1747177848933,-1845.49,0.00011234,2]
[360978299,1747177848942,-721.54,0.00011234,2]
[360978301,1747177848953,-151.0,0.00011234,2]
[360978303,1747177848963,-400.0,0.00011234,2]
[360978305,1747177848972,-623.45,0.00011234,2]
[360978307,1747177848981,-400.0,0.00011234,2]
[360978309,1747177848990,-400.0,0.00011234,2]
[360978311,1747177848999,-400.0,0.00011234,2]
[360978313,1747177849009,-151.0,0.00011234,2]
[360978315,1747177849018,-947.78,0.00011234,2]
[360978317,1747177849027,-400.0,0.00011234,2]
[360978319,1747177849037,-614.81,0.00011234,2]
[360978321,1747177849048,-398.440039,0.00011234,2]
[360978323,1747177849057,-493.15,0.00011234,2]
[360978325,1747177849066,-398.440039,0.00011234,2]
[360978326,1747177849076,-372.59670099,0.00011234,2]
[360978328,1747177849085,-1689.01,0.00011234,2]
[360978330,1747177849094,-400.0,0.00011234,2]
[360978332,1747177849104,-1163.98,0.00011234,2]
[360978334,1747177849114,-400.0,0.00011234,2]
[360978336,1747177849123,-594.97,0.00011234,2]
[360978338,1747177849133,-400.0,0.00011234,2]
[360978340,1747177849142,-986.53,0.00011234,2]
[360978342,1747177849152,-400.0,0.00011234,2]
[360978344,1747177849161,-400.0,0.00011234,2]
[360978346,1747177849171,-400.0,0.00011234,2]
[360978348,1747177849182,-558.31,0.00011234,2]
[360978350,1747177849192,-1655.25,0.00011234,2]
[360978352,1747177849203,-400.0,0.00011234,2]
[360978354,1747177849212,-416.88,0.00011234,2]
[360978356,1747177849222,-1939.59,0.00011234,2]
[360978358,1747177849231,-400.0,0.00011234,2]
[360978360,1747177849241,-400.0,0.00011234,2]
[360978361,1747177849251,-400.0,0.00011234,2]
[360978363,1747177849260,-400.0,0.00011234,2]
[360978366,1747177849271,-520.64,0.00011234,2]
[360978367,1747177849280,-1225.03,0.00011234,2]
[360978369,1747177849291,-400.0,0.00011234,2]
[360978371,1747177849300,-400.0,0.00011234,2]
[360978373,1747177849311,-973.36,0.00011234,2]
[360978375,1747177849321,-1656.83,0.00011234,2]
[360978377,1747177849330,-6972.05,0.00011234,2]
[360978379,1747177849340,-400.0,0.00011234,2]
[360978381,1747177849350,-524.76,0.00011234,2]
[360978383,1747177849359,-400.0,0.00011234,2]
[360978385,1747177849369,-427.45,0.00011234,2]
[360978387,1747177849378,-343.1,0.00011234,2]
[360978389,1747177849387,-400.0,0.00011234,2]
[360978391,1747177849397,-1510.85,0.00011234,2]
[360978393,1747177849407,-824.45,0.00011234,2]
[360978395,1747177849417,-453.72,0.00011234,2]
[360978397,1747177849426,-720.6,0.00011234,2]
[360978399,1747177849436,-400.0,0.00011234,2]
[360978401,1747177849446,-637.67,0.00011234,2]
[360978403,1747177849456,-400.0,0.00011234,2]
[360978405,1747177849466,-400.0,0.00011234,2]
[360978407,1747177849475,-400.0,0.00011234,2]
[360978409,1747177849485,-400.0,0.00011234,2]
[360978411,1747177849494,-3868.02,0.00011234,2]
[360978413,1747177849503,-400.0,0.00011234,2]
[360978415,1747177849514,-817.34,0.00011234,2]
[360978417,1747177849523,-423.21,0.00011234,2]
[360978419,1747177849532,-400.0,0.00011234,2]
[360978421,1747177849542,-400.0,0.00011234,2]
[360978422,1747177849551,-400.0,0.00011234,2]
[360978424,1747177849561,-1145.2,0.00011234,2]
[360978426,1747177849571,-2037.66,0.00011234,2]
[360978428,1747177849580,-400.0,0.00011234,2]
[360978430,1747177849590,-554.61,0.00011234,2]
[360978432,1747177849599,-420.2,0.00011234,2]
[360978434,1747177849608,-693.33,0.00011234,2]
[360978436,1747177849617,-1785.76,0.00011234,2]
[360978438,1747177849626,-635.53,0.00011234,2]
[360978440,1747177849636,-400.0,0.00011234,2]
[360978442,1747177849645,-400.0,0.00011234,2]
[360978444,1747177849655,-2651.86,0.00011234,2]
[360978446,1747177849664,-400.0,0.00011234,2]
[360978448,1747177849674,-986.19,0.00011234,2]
[360978450,1747177849684,-400.0,0.00011234,2]
[360978452,1747177849693,-400.0,0.00011234,2]
[360978454,1747177849703,-419.2,0.00011234,2]
[360978455,1747177849714,-400.0,0.00011234,2]
[360978458,1747177849724,-552.53,0.00011234,2]
[360978459,1747177849733,-661.56,0.00011234,2]
[360978461,1747177849743,-775.79,0.00011234,2]
[360978463,1747177849752,-400.0,0.00011234,2]
[360978465,1747177849762,-400.0,0.00011234,2]
[360978467,1747177849772,-400.0,0.00011234,2]
[360978469,1747177849781,-440.99,0.00011234,2]
[360978471,1747177849792,-4632.48,0.00011234,2]
[360978473,1747177849802,-400.0,0.00011234,2]
[360978475,1747177849812,-400.0,0.00011234,2]
[360978477,1747177849822,-400.0,0.00011234,2]
[360978479,1747177849833,-400.0,0.00011234,2]
[360978481,1747177849843,-1391.83,0.00011234,2]
[360978483,1747177849854,-400.0,0.00011234,2]
[360978485,1747177849864,-400.0,0.00011234,2]
[360978487,1747177849874,-400.0,0.00011234,2]
[360978489,1747177849884,-400.0,0.00011234,2]
[360978491,1747177849893,-400.0,0.00011234,2]
[360978493,1747177849903,-546.46,0.00011234,2]
[360978495,1747177849913,-400.0,0.00011234,2]
[360978497,1747177849922,-554.71,0.00011234,2]
[360978499,1747177849932,-400.0,0.00011234,2]
[360978501,1747177849941,-151.0,0.00011235,2]
[360978503,1747177849953,-194.97344,0.00011235,2]
[360978505,1747177849963,-194.97344,0.00011235,2]
[360978507,1747177849973,-151.0,0.00011235,2]
[360978509,1747177849982,-618.71,0.00011235,2]
[360978511,1747177849992,-775.14,0.00011235,2]
[360978513,1747177850001,-151.0,0.00011235,2]
[360978515,1747177850011,-400.0,0.00011235,2]
[360978517,1747177850020,-151.0,0.00011235,2]
[360978519,1747177850029,-400.0,0.00011235,2]
[360978521,1747177850039,-925.38,0.00011235,2]
[360978523,1747177850048,-151.0,0.00011235,2]
[360978524,1747177850058,-898.55,0.00011235,2]
[360978526,1747177850068,-400.0,0.00011235,2]
[360978528,1747177850077,-1729.65,0.00011235,2]
[360978530,1747177850087,-400.0,0.00011235,2]
[360978532,1747177850096,-400.0,0.00011235,2]
[360978534,1747177850106,-437.48,0.00011235,2]
[360978536,1747177850115,-463.81168982,0.00011235,2]
[360978538,1747177850124,-1473.63,0.00011235,2]